Cogmind - Beta 13 @@@ ROGUE MODE // 2024.04.05 @ 17:55:42 Player: Findu Result: Destroyed by B-75 Beast with Magnetic Acceleration Cannon Performance ------------- Evolutions (3) 1500 Regions Visited (11) 2200 Robots Destroyed (58) 290 Value Destroyed (2191) 2191 Prototype IDs (11) 220 Alien Tech Used (0) 0 Bonus (1595) 1595 TOTAL SCORE: 7996 Bonus ------- High Alert Combat Kills 141 Follower Combat Kills 180 Entered Garrisons 200 Used RIF Installer 500 Aligned with FarCom 300 Met Data Miner 300 Friendly Fire -26 Cogmind --------- Core Integrity 0/700 Matter 207/300 Energy 97/100 System Corruption 13% Temperature Cool (12) Movement Core (100) Ox1 Location -6/Proximity Caves Parts ------- > --- POWER (2) -------- (None) > --- PROPULSION (3) --- (None) > --- UTILITY (5) ------ Signal Interpreter Transmission Jammer Improved Utility Shielding > --- WEAPON (3) ------- Mace > --- INVENTORY (5) ---- Light Deuterium Engine Micro Nuclear Core Improved Heat Sink Large Storage Unit Improved Propulsion Shielding Peak State ------------ > --- POWER ------------ Micro Nuclear Core Micro Nuclear Core > --- PROPULSION ------- Medium Treads Medium Treads > --- UTILITY ---------- Large Storage Unit Advanced Visual Processing Unit Signal Interpreter Target Analyzer Layered Light Armor Plating > --- WEAPON ----------- Advanced Beam Rifle Heavy Ion Cannon Gauss Rifle > --- INVENTORY -------- Micro Nuclear Core Improved Heat Sink Huge Storage Unit Medium Matter Pod Sensor Array Transmission Jammer Advanced ECM Suite Improved Utility Shielding Hardened Heavy Armor Plating Particle Gun Particle Cannon Gauss Rifle Datajack [Rating: 43] Favorites ----------- Power Micro Nuclear Core Engine Ion Engine Power Core Micro Nuclear Core Propulsion Light Treads Treads Light Treads Wheel Wheel Utility Signal Interpreter Device Disposable Heat Sink Storage Huge Storage Unit Processor Signal Interpreter Protection Hardened Heavy Armor Plating Weapon Particle Cannon Energy Gun Shock Rifle Energy Cannon Particle Cannon Ballistic Gun Gauss Rifle Ballistic Cannon Battle Cannon Launcher Rocket Launcher Impact Weapon Mace Slashing Weapon Katana Special Melee Weapon Datajack Build | -11 -10 -10 -10 -9 -8 -8 -7 -7 -7 -7 -6 ------- Run | Yrd Mat Min Exi Min Mat Gar Fac Low Low Dat Pro Slots Evolved 6 | . . . . . 4 . 2 . . . . Power 1 | . . . . . . . 1 . . . . Propulsion 1 | . . . . . 1 . . . . . . Utility 3 | . . . . . 3 . . . . . . Weapon 1 | . . . . . . . 1 . . . . Parts Attached 104 | 6 7 . . 6 13 26 8 11 25 . 2 Power 11 | 1 1 . . . . 4 2 . 3 . . Engine 3 | 1 1 . . . . . . . 1 . . Core 8 | . . . . . . 4 2 . 2 . . Reactor . | . . . . . . . . . . . . Propulsion 22 | 2 . . . 2 9 3 1 1 4 . . Treads 14 | . . . . 1 4 3 1 1 4 . . Leg . | . . . . . . . . . . . . Wheel 8 | 2 . . . 1 5 . . . . . . Hover . | . . . . . . . . . . . . Flight . | . . . . . . . . . . . . Utility 27 | 1 4 . . . 4 4 1 3 8 . 2 Device 6 | . 1 . . . . 2 . 1 2 . . Storage 6 | 1 1 . . . 1 1 . . 2 . . Processor 5 | . 2 . . . . . 1 1 1 . . Hackware . | . . . . . . . . . . . . Protection 10 | . . . . . 3 1 . 1 3 . 2 Artifact . | . . . . . . . . . . . . Weapon 44 | 2 2 . . 4 . 15 4 7 10 . . Energy Gun 7 | . . . . 2 . 1 1 2 1 . . Energy Cannon 13 | . 2 . . . . 5 1 2 3 . . Ballistic Gun 17 | 2 . . . 1 . 7 1 3 3 . . Ballistic Cannon 1 | . . . . . . . . . 1 . . Launcher 2 | . . . . 1 . 1 . . . . . Special Weapon . | . . . . . . . . . . . . Impact Weapon 1 | . . . . . . . . . 1 . . Slashing Weapon 1 | . . . . . . 1 . . . . . Piercing Weapon . | . . . . . . . . . . . . Special Melee Weapon 2 | . . . . . . . 1 . 1 . . Unidentified Prototypes 1 | . . . . . . . 1 . . . . Parts Lost 38 | . . . . 1 1 6 . 10 16 . 4 Power 4 | . . . . . . 1 . 1 2 . . Propulsion 10 | . . . . . 1 1 . 3 3 . 2 Utility 9 | . . . . . . 3 . 1 4 . 1 Weapon 15 | . . . . 1 . 1 . 5 7 . 1 Highest Loss Streak 12 | . . . . 1 1 5 . 7 12 . 4 To Critical Strikes . | . . . . . . . . . . . . Average Slot Usage (%) 89 | . 97 100 100 100 82 85 92 94 81 69 69 Engine 4 | . 12 14 14 14 9 1 . . 4 7 5 Core 7 | . . . . . . 5 9 13 8 7 7 Treads 14 | . . . . 1 6 9 23 20 17 15 12 Wheel 7 | . 28 28 28 26 18 15 . . . . . Device 6 | . 1 . . . . 4 15 6 8 7 7 Storage 7 | . 14 14 14 14 9 13 9 7 2 . . Processor 14 | . 12 14 14 14 9 9 12 22 12 7 7 Protection 3 | . . . . . 12 10 . . 7 7 12 Energy Gun 3 | . . . . 5 9 . 2 6 2 . . Energy Cannon 8 | . 27 28 28 17 . 4 10 6 2 . . Ballistic Gun 5 | . . . . . . 7 7 6 6 7 6 Naked Turns . | . . . . . . . . . . . . Heaviest Build 112 | 13 34 33 33 33 109 112 105 107 100 43 45 Greatest Support 68 | 20 20 20 20 20 42 60 68 68 63 40 40 Greatest Overweight (x) 15 | 1 1 1 1 3 4 3 1 3 15 1 1 Average Overweight (x) . | . . 1 1 1 3 2 1 1 . 1 1 Largest Inventory Capacity 25 | 8 15 15 15 15 25 25 25 25 25 5 5 Average Capacity 17 | 7 12 15 15 15 23 25 25 25 8 5 5 Most Carried 25 | . 15 15 15 15 19 20 25 24 18 5 5 Average Carried 14 | . 9 14 15 14 15 16 21 19 7 5 4 Final Capacity 25 | 8 15 15 15 15 25 25 25 25 5 5 5 Final Carried 24 | . 15 15 15 14 18 13 24 18 5 5 5 Class Distribution -------------------- 40% | Mutant 26% | Scavenger-Gunner 17% | Scavenger-Skirmisher 14% | Scavenger-Mutant Dominant Class ---------------- Mutant | -10/Materials Mutant | -10/Mines Mutant | -10/Exiles Mutant | -9/Mines Mutant | -8/Materials Mutant | -8/Garrison Scavenger-Skirmisher | -7/Factory Scavenger-Gunner | -7/Lower Caves Scavenger-Mutant | -7/Lower Caves Mutant | -7/Data Miner Mutant | -6/Proximity Caves Resources | -11 -10 -10 -10 -9 -8 -8 -7 -7 -7 -7 -6 ----------- Run | Yrd Mat Min Exi Min Mat Gar Fac Low Low Dat Pro Matter Collected 2177 | 210 160 60 . 64 80 325 244 452 578 . 4 Remotely . | . . . . . . . . . . . . Salvage Created 1820 | . 286 . . 125 42 408 244 337 282 . 96 Parts 98 | . 26 . . 3 2 31 11 12 10 . 3 Haulers Intercepted 1 | . 1 . . . . . . . . . . Recyclers Shooed 1 | . 1 . . . . . . . . . . Parts Field Recycled . | . . . . . . . . . . . . Retrieved Matter . | . . . . . . . . . . . . Parts Self-Destructed 27 | . . . . . . . . 9 15 . 3 Prevented 3 | . . . . . . . . 3 . . . Kills | -11 -10 -10 -10 -9 -8 -8 -7 -7 -7 -7 -6 ------- Run | Yrd Mat Min Exi Min Mat Gar Fac Low Low Dat Pro Combat Hostiles Destroyed 51 | . 5 . . 3 1 23 4 8 5 . 2 Melee 1 | . . . . . . 1 . . . . . Guns 16 | . . . . 2 1 4 1 5 1 . 2 Cannons 23 | . 5 . . 1 . 7 3 3 4 . . AOE 11 | . . . . . . 11 . . . . . Classes Destroyed 14 | . 5 . . 1 3 2 . 1 2 . . Worker 1 | . . . . . 1 . . . . . . Builder 1 | . 1 . . . . . . . . . . Tunneler 1 | . . . . . 1 . . . . . . Hauler 1 | . 1 . . . . . . . . . . Watcher 3 | . 3 . . . . . . . . . . Swarmer 20 | . 3 . . . . 12 . 4 1 . . Grunt 15 | . 2 . . 2 . 6 . 2 2 . 1 Brawler 2 | . . . . . . . . . 1 . 1 Duelist 2 | . . . . 1 . 1 . . . . . Sentry 5 | . . . . . 1 . 2 1 1 . . Hunter 1 | . . . . . . 1 . . . . . Programmer 5 | . . . . . . 3 2 . . . . Behemoth 1 | . . . . . . . . 1 . . . Samaritan 1 | . . . . . . . . . 1 . . Best Kill Streak 7 | . 3 . . 3 3 7 1 4 2 . 1 Combat Bots Only 7 | . 3 . . 3 1 7 1 4 2 . 1 Max Kills in Single Turn 4 | . 2 . . 1 1 4 1 1 1 . 1 Gunslinging . | . . . . . . . . . . . . Exploded 4 | . . . . . . 4 . . . . . Melee 1 | . . . . . . 1 . . . . . Uniques/NPCs Destroyed . | . . . . . . . . . . . . Combat | -11 -10 -10 -10 -9 -8 -8 -7 -7 -7 -7 -6 -------- Run | Yrd Mat Min Exi Min Mat Gar Fac Low Low Dat Pro Hostile Shots Fired 500 | . 14 . . 21 10 144 60 95 114 . 42 Missed 124 | . 4 . . 5 2 31 30 28 18 . 6 Damage Taken 6143 | . 108 . . 198 176 1524 296 1236 2105 . 500 Core 1006 | . 32 . . 45 80 124 41 302 302 . 80 Absorbed by Shields 86 | . . . . . . 86 . . . . . Redirected to Shielding 118 | . . . . . . 102 . . . . 16 Regen/Repaired (Parts) 32 | . 32 . . . . . . . . . . Core Remaining (%) 77 | 100 . . . 69 . 62 . . . . . Volleys Fired 172 | . 17 . . 15 7 51 10 29 31 . 12 Largest 3 | . 2 . . 2 2 2 3 3 3 . 1 Hottest 157 | . 136 . . 136 98 101 156 147 157 . 28 Shots Fired 345 | . 34 . . 29 14 86 31 71 68 . 12 Gun 159 | . . . . 13 7 27 16 46 38 . 12 Cannon 164 | . 34 . . 16 . 44 15 25 30 . . Launcher 22 | . . . . . 7 15 . . . . . Special . | . . . . . . . . . . . . Kinetic 111 | . . . . 3 . 26 10 25 35 . 12 Thermal 182 | . 34 . . 23 7 45 21 19 33 . . Explosive 22 | . . . . . 7 15 . . . . . Electromagnetic 30 | . . . . 3 . . . 27 . . . Robot Hit Streak 13 | . 6 . . 6 7 7 12 12 13 . 5 Robot Miss Streak 9 | . 4 . . 7 1 6 1 8 6 . 9 Penetration Max 1 | . . . . . . . . . 1 . . Secondary Targets 3 | . . . . 1 . 1 . . 1 . . Max Gunslinging Chain 1 | . . . . 1 . 1 . . 1 . . Shots Hit Robots 211 | . 14 . . 15 9 46 20 51 45 . 11 Core Hits 129 | . 11 . . 5 6 45 9 21 17 . 15 Critical Kills 1 | . . . . . . . . . 1 . . Critical Parts Destroyed 2 | . . . . . . . . 1 1 . . Critical Strikes 9 | . . . . 1 . . 1 4 3 . . Burn 5 | . . . . 1 . . 1 2 1 . . Destroy 3 | . . . . . . . . 1 2 . . Corrupt 1 | . . . . . . . . 1 . . . Melee Attacks 3 | . . . . . . 2 . . 1 . . Impact . | . . . . . . . . . . . . Slashing 2 | . . . . . . 2 . . . . . Piercing . | . . . . . . . . . . . . Sneak Attacks 1 | . . . . . . . . . 1 . . Combat Hostiles . | . . . . . . . . . . . . Follow-up Attacks . | . . . . . . . . . . . . Damage Inflicted 5756 | . 329 . . 242 316 2160 458 1162 901 . 188 Guns 1912 | . . . . 160 93 287 189 573 422 . 188 Cannons 2237 | . 329 . . 82 . 539 269 539 479 . . Explosions 1571 | . . . . . 223 1298 . 50 . . . Melee 36 | . . . . . . 36 . . . . . Ramming . | . . . . . . . . . . . . Kinetic 1339 | . . . . 23 . 287 84 314 443 . 188 Thermal 2471 | . 329 . . 190 93 539 374 488 458 . . Explosive 1521 | . . . . . 223 1298 . . . . . Electromagnetic 389 | . . . . 29 . . . 360 . . . Impact . | . . . . . . . . . . . . Slashing 36 | . . . . . . 36 . . . . . Piercing . | . . . . . . . . . . . . Highest Corruption 13 | . . . . . . 5 3 3 13 13 13 Average Corruption 6 | . . . . . . 4 2 3 9 13 13 Corruption Purged . | . . . . . . . . . . . . Corruption Blocked . | . . . . . . . . . . . . Effects 136 | . . . . . . 9 5 41 65 9 7 Message Errors 27 | . . . . . . 1 2 11 11 2 . Matter Fused 34 | . . . . . . 2 1 12 16 3 . Heat Flow Errors 23 | . . . . . . 2 . 8 9 2 2 Energy Discharges 12 | . . . . . . 1 . 3 5 2 1 Parts Rejected 2 | . . . . . . . . 1 1 . . Parts Fused 3 | . . . . . . . . 1 2 . . Data Loss (minor) 14 | . . . . . . . . 3 10 . 1 Data Loss (major) 7 | . . . . . . 1 1 1 2 . 2 Misfires 9 | . . . . . . 2 1 . 6 . . Alerts 4 | . . . . . . . . 1 2 . 1 Weapon Failures 1 | . . . . . . . . . 1 . . Overload Shots . | . . . . . . . . . . . . Overflow Damage 84 | . . . . . 10 59 . . 15 . . Projectiles 30 | . . . . . . 15 . . 15 . . Explosions 54 | . . . . . 10 44 . . . . . Melee . | . . . . . . . . . . . . Knockbacks 3 | . . . . . . . . . 3 . . Impact . | . . . . . . . . . . . . Kinetic 3 | . . . . . . . . . 3 . . Secondary . | . . . . . . . . . . . . Self-Inflicted Damage 128 | . . . . . 58 70 . . . . . Shots 5 | . . . . . 3 2 . . . . . Rammed . | . . . . . . . . . . . . Targets Rammed . | . . . . . . . . . . . . Kicked . | . . . . . . . . . . . . Crushed . | . . . . . . . . . . . . Highest Temperature 465 | . 411 . . 414 153 354 190 438 465 191 325 Average Temperature 140 | . 143 . . 220 78 153 88 148 125 92 147 Received Heat Transfer 1252 | . 36 . . 90 27 262 90 207 417 . 123 Effects 26 | . 4 . . 4 . 2 . 5 10 . 1 Shutdowns 7 | . . . . 2 . . . 2 2 . 1 Energy Bleed 4 | . 2 . . . . 1 . . 1 . . Interference 9 | . 2 . . 2 . . . 2 3 . . Matter Decay 2 | . . . . . . . . . 2 . . Short Circuit 2 | . . . . . . . . . 2 . . Damage (minor) 2 | . . . . . . 1 . 1 . . . Siege Activations . | . . . . . . . . . . . . Robots Corrupted . | . . . . . . . . . . . . Combat Hostiles . | . . . . . . . . . . . . Parts Fried 2 | . . . . . . . . 2 . . . Impact Corruptions . | . . . . . . . . . . . . Robots Melted . | . . . . . . . . . . . . Combat Hostiles . | . . . . . . . . . . . . Parts Melted 7 | . 1 . . 1 . 1 3 1 . . . Heat Transferred 4528 | . 592 . . 481 222 925 666 827 815 . . Parts Sabotaged . | . . . . . . . . . . . . Parts Stolen . | . . . . . . . . . . . . Parts Stripped . | . . . . . . . . . . . . Power Chain Reactions 1 | . . . . . . . . 1 . . . Alert | -11 -10 -10 -10 -9 -8 -8 -7 -7 -7 -7 -6 ------- Run | Yrd Mat Min Exi Min Mat Gar Fac Low Low Dat Pro Peak Influence 716 | . 278 108 . 60 117 716 405 . . . . Initial 375 | . . 108 . . 23 76 375 . . . . Average 269 | . 140 108 . 22 73 554 256 . . . . Maximum Alert Level 3 | . 1 . . . . 3 2 . . . . Low Security (%) 49 | 100 82 100 . 100 100 3 36 . . . . Level 1 25 | . 17 . . . . 11 55 . . . . Level 2 20 | . . . . . . 67 7 . . . . Level 3 4 | . . . . . . 17 . . . . . Level 4 . | . . . . . . . . . . . . Level 5 . | . . . . . . . . . . . . High Security . | . . . . . . . . . . . . Max Security . | . . . . . . . . . . . . Squads Dispatched 5 | . 1 . . . 1 . 2 . 1 . . Investigation 1 | . . . . . 1 . . . . . . Extermination 2 | . . . . . . . 2 . . . . Reinforcement 1 | . 1 . . . . . . . . . . Assault 1 | . . . . . . . . . 1 . . Garrison . | . . . . . . . . . . . . Intercept . | . . . . . . . . . . . . Searches Triggered . | . . . . . . . . . . . . Construction Impeded . | . . . . . . . . . . . . Haulers Reinforced . | . . . . . . . . . . . . Active Scanning Responses . | . . . . . . . . . . . . Cargo Convoy Interrupts . | . . . . . . . . . . . . Stealth | -11 -10 -10 -10 -9 -8 -8 -7 -7 -7 -7 -6 --------- Run | Yrd Mat Min Exi Min Mat Gar Fac Low Low Dat Pro Distress Signals 1 | . . . . . . . 1 . . . . Communications Jammed . | . . . . . . . . . . . . Distress Signals . | . . . . . . . . . . . . Times Spotted 75 | . 14 . . 3 1 23 6 9 15 . 4 Peak Tracking Total 8 | . 3 . . 3 1 5 2 4 8 . 3 Tactical Retreats 5 | . . . . . . 1 . 1 3 . . Traps | -11 -10 -10 -10 -9 -8 -8 -7 -7 -7 -7 -6 ------- Run | Yrd Mat Min Exi Min Mat Gar Fac Low Low Dat Pro Traps Triggered 9 | . . . . . . 7 2 . . . . Indirectly . | . . . . . . . . . . . . Trap Hack Attempts . | . . . . . . . . . . . . Triggered . | . . . . . . . . . . . . Disarmed . | . . . . . . . . . . . . Reprogrammed . | . . . . . . . . . . . . Reused . | . . . . . . . . . . . . Traps Extracted . | . . . . . . . . . . . . Installed . | . . . . . . . . . . . . Triggered 1 | . . . . . . . . . 1 . . Machines | -11 -10 -10 -10 -9 -8 -8 -7 -7 -7 -7 -6 ---------- Run | Yrd Mat Min Exi Min Mat Gar Fac Low Low Dat Pro Machines Disabled 10 | . 5 . . . . 2 2 . 1 . . Max in Single Turn 1 | . 1 . . . . 1 1 . 1 . . Garrison Relay 1 | . . . . . . 1 . . . . . Machines Repaired . | . . . . . . . . . . . . Machines Dismantled . | . . . . . . . . . . . . Machines Sabotaged . | . . . . . . . . . . . . Overloaded Fab Kills . | . . . . . . . . . . . . Hacking | -11 -10 -10 -10 -9 -8 -8 -7 -7 -7 -7 -6 --------- Run | Yrd Mat Min Exi Min Mat Gar Fac Low Low Dat Pro Machines Accessed 17 | . 3 . 4 . 4 . 2 . . 4 . Terminals 5 | . 2 . . . 2 . 1 . . . . Fabricators 1 | . . . . . . . 1 . . . . Repair Stations 1 | . 1 . . . . . . . . . . Recycling Units 1 | . . . . . 1 . . . . . . Scanalyzers . | . . . . . . . . . . . . Garrison Access 1 | . . . . . 1 . . . . . . Total Hacks 106 | . 10 . 49 . 13 . 4 . . 30 . Successful 93 | . 7 . 49 . 6 . 1 . . 30 . Failed 13 | . 3 . . . 7 . 3 . . . . Catastrophic 3 | . . . . . 1 . 2 . . . . Database Lockouts . | . . . . . . . . . . . . Manual 4 | . . . 1 . 2 . . . . 1 . Terminals 13 | . 6 . . . 6 . 1 . . . . Fabricators 3 | . . . . . . . 3 . . . . Repair Stations 4 | . 4 . . . . . . . . . . Recycling Units 4 | . . . . . 4 . . . . . . Scanalyzers . | . . . . . . . . . . . . Garrison Access 3 | . . . . . 3 . . . . . . Terminal Hacks 86 | . 4 . 49 . 3 . . . . 30 . Record 62 | . . . 49 . 2 . . . . 11 . Part Schematic 9 | . . . . . . . . . . 9 . Robot Schematic 7 | . . . . . . . . . . 7 . Robot Analysis 1 | . 1 . . . . . . . . . . Prototype ID Bank 3 | . . . . . . . . . . 3 . Locate Traps 1 | . 1 . . . . . . . . . . Transport Status 2 | . 1 . . . 1 . . . . . . Zone Layout 1 | . 1 . . . . . . . . . . Fabricator Hacks 1 | . . . . . . . 1 . . . . Network Status 1 | . . . . . . . 1 . . . . Repair Station Hacks 3 | . 3 . . . . . . . . . . Scan Component 2 | . 2 . . . . . . . . . . Repair 1 | . 1 . . . . . . . . . . Recycling Unit Hacks 2 | . . . . . 2 . . . . . . Retrieve Matter 1 | . . . . . 1 . . . . . . Retrieve Components 1 | . . . . . 1 . . . . . . Scanalyzer . | . . . . . . . . . . . . Garrison Access Hacks 1 | . . . . . 1 . . . . . . Unlock Access 1 | . . . . . 1 . . . . . . Unauthorized Hacks . | . . . . . . . . . . . . Terminals . | . . . . . . . . . . . . Fabricators . | . . . . . . . . . . . . Repair Stations . | . . . . . . . . . . . . Recycling Units . | . . . . . . . . . . . . Scanalyzers . | . . . . . . . . . . . . Garrison Access . | . . . . . . . . . . . . Data Cores Recovered . | . . . . . . . . . . . . Used . | . . . . . . . . . . . . Hacking Detections 8 | . 3 . . . 3 . 2 . . . . Full Trace Events 1 | . . . . . 1 . . . . . . Feedback Events . | . . . . . . . . . . . . Feedback Blocked . | . . . . . . . . . . . . Robot Schematics Acquired 7 | . . . . . . . . . . 7 . Robots Built . | . . . . . . . . . . . . Authchips . | . . . . . . . . . . . . Time . | . . . . . . . . . . . . Total Robot Build Rating . | . . . . . . . . . . . . Part Schematics Acquired 9 | . . . . . . . . . . 9 . Parts Built . | . . . . . . . . . . . . Authchips . | . . . . . . . . . . . . Time . | . . . . . . . . . . . . Total Part Build Rating . | . . . . . . . . . . . . Parts Repaired 1 | . 1 . . . . . . . . . . Time 36 | . 36 . . . . . . . . . . Parts Recycled . | . . . . . . . . . . . . Recycled Matter . | . . . . . . . . . . . . Retrieved Matter . | . . . . . . . . . . . . Retrieved Components . | . . . . . . . . . . . . Parts Scanalyzed . | . . . . . . . . . . . . Part Schematics Acquired . | . . . . . . . . . . . . Parts Damaged . | . . . . . . . . . . . . Bothacking | -11 -10 -10 -10 -9 -8 -8 -7 -7 -7 -7 -6 ------------ Run | Yrd Mat Min Exi Min Mat Gar Fac Low Low Dat Pro Used RIF Installer 1 | . . . . . . 1 . . . . . Robots Hacked 1 | . . . . . . . . . 1 . . Non-combat 1 | . . . . . . . . . 1 . . Combat . | . . . . . . . . . . . . Robot Hacks Applied 1 | . . . . . . . . . 1 . . parse_system 1 | . . . . . . . . . 1 . . Relay Couplers Released 5 | . . . . . . 5 . . . . . Machine Destruction 5 | . . . . . . 5 . . . . . Fabnet Peak Effective % . | . . . . . . . . . . . . Robots Rewired 2 | . . . . . . . . . 2 . . Allies Hacked . | . . . . . . . . . . . . Hacks Repelled . | . . . . . . . . . . . . Allies | -11 -10 -10 -10 -9 -8 -8 -7 -7 -7 -7 -6 -------- Run | Yrd Mat Min Exi Min Mat Gar Fac Low Low Dat Pro Total Allies 3 | . . . . . . . . . 2 . 1 Largest Group 2 | . . . . . . . . . 2 1 2 Highest-Rated Group 116 | . . . . . . . . . 62 20 116 Highest-Rated Ally 96 | . . . . . . . . . 32 20 96 Total Orders . | . . . . . . . . . . . . Ally Attacks 20 | . . . . . . . . . 14 . 6 Total Damage 684 | . . . . . . . . . 451 . 233 Kills 5 | . . . . . . . . . 4 . 1 Allies Corrupted . | . . . . . . . . . . . . Allies Melted . | . . . . . . . . . . . . Intel | -11 -10 -10 -10 -9 -8 -8 -7 -7 -7 -7 -6 ------- Run | Yrd Mat Min Exi Min Mat Gar Fac Low Low Dat Pro Robot Analysis Total 1 | . 1 . . . . . . . . . . Derelict Logs Recovered 5 | . . 1 . 1 . . . . 3 . . Drone Launches . | . . . . . . . . . . . . Drone Recoveries . | . . . . . . . . . . . . Exploration | -11 -10 -10 -10 -9 -8 -8 -7 -7 -7 -7 -6 ------------- Run | Yrd Mat Min Exi Min Mat Gar Fac Low Low Dat Pro Turns Passed 8531 | 39 321 222 656 387 278 888 1268 1977 2123 204 168 Spaces Moved 4696 | 38 246 226 690 315 179 436 502 744 1176 86 58 Core 26 | 2 . . . . . . . . 23 . 1 Treads 2638 | . . . . 3 . 93 502 744 1153 86 57 Legs . | . . . . . . . . . . . . Wheels 2032 | 36 246 226 690 312 179 343 . . . . . Hover . | . . . . . . . . . . . . Flight . | . . . . . . . . . . . . Fastest Speed 50 | 50 80 95 95 95 95 123 240 240 50 240 100 Average Speed 164 | 78 89 95 95 98 131 151 240 252 168 240 237 Slowest Speed 800 | 95 95 95 95 240 150 240 240 400 800 240 240 Overloaded Moves . | . . . . . . . . . . . . Propulsion Burnouts . | . . . . . . . . . . . . Robots Hopped . | . . . . . . . . . . . . Cave-ins Triggered . | . . . . . . . . . . . . Exploration Rate (%) 50 | 3 50 53 91 72 19 49 11 85 88 69 10 Regions Visited 11 Branch Regions 7 Pre-discovered Areas 2 | . . . 1 . . . . . . 1 . Known Exits Taken 9 | . 1 1 1 1 1 . 1 1 1 1 . Unknown Exits Taken 1 | 1 . . . . . . . . . . . Scrap Searched 10 | . . 1 . 2 . . . 3 4 . . Spaces Dug . | . . . . . . . . . . . . Terrain Destroyed 138 | . . . . . 50 83 . . 5 . . Melee . | . . . . . . . . . . . . Projectile 6 | . . . . . . 1 . . 5 . . AOE 132 | . . . . . 50 82 . . . . . Terrain Rammed . | . . . . . . . . . . . . Walls Destroyed . | . . . . . . . . . . . . Machines Disabled . | . . . . . . . . . . . . Actions | -11 -10 -10 -10 -9 -8 -8 -7 -7 -7 -7 -6 --------- Run | Yrd Mat Min Exi Min Mat Gar Fac Low Low Dat Pro Total 5165 | 43 311 233 690 361 207 573 546 786 1254 85 76 Wait 67 | . 22 6 . 26 . 7 4 . . . 2 Move 4684 | 37 245 225 689 314 178 434 501 743 1175 85 58 Hop . | . . . . . . . . . . . . Pick Up 46 | . 14 1 . . 4 5 14 1 7 . . Fast Attach 33 | 6 5 . . . 3 . 3 1 15 . . Attach 40 | . 1 . . 1 5 11 4 8 9 . 1 Detach 22 | . 4 . . . 4 4 4 1 3 . 2 Swap 31 | . 1 . . 5 5 15 1 2 1 . 1 Drop 20 | . 2 1 . . 1 3 5 1 7 . . Fire 172 | . 17 . . 15 7 51 10 29 31 . 12 Melee 3 | . . . . . . 2 . . 1 . . Ram . | . . . . . . . . . . . . Kick . | . . . . . . . . . . . . Crush . | . . . . . . . . . . . . Escape Stasis 41 | . . . . . . 41 . . . . . Rewire 6 | . . . 1 . . . . . 5 . . Trap . | . . . . . . . . . . . . Miscellaneous . | . . . . . . . . . . . . Route ------- -11/Scrapyard -10/Materials (discovered 2 exits: *Min x2) -10/Mines -10/Exiles (discovered 2 exits: *Min x2) -9/Mines -8/Materials (discovered 3 exits: *Fac x2 / Gar) -8/Garrison (discovered 2 exits: *Fac x2) -7/Factory -7/Lower Caves -7/Lower Caves -7/Data Miner -6/Proximity Caves History --------- Turn | Location | Event 6 | -11/Scrapyard | Discovered new exit (range 16) 40 | -11/Scrapyard | Entered Materials 198 | -10/Materials | Discovered new exit (range 13) 208 | -10/Materials | Identified exit to Mines 292 | -10/Materials | Repaired Broken Ion Engine 313 | -10/Materials | Build established: Mutant 337 | -10/Materials | Discovered exit to Mines (range 9) 361 | -10/Materials | Entered Mines 390 | -10/Mines | Learned 4 Materials zone layouts 524 | -10/Mines | Received a Rocket Launcher from a helpful Derelict 576 | -10/Mines | Deemed a non-threat by the Exiles lab entrance 577 | -10/Mines | Discovered new exit (range 5) 581 | -10/Mines | Identified exit to Exiles 583 | -10/Mines | Entered Exiles 598 | -10/Exiles | Discovered new exit (range 15) 608 | -10/Exiles | Met 8R-AWN 624 | -10/Exiles | Met EX-HEX 662 | -10/Exiles | Met EX-DEC 668 | -10/Exiles | Learned location of Zion (-6) 696 | -10/Exiles | Discovered new exit (range 12) 705 | -10/Exiles | Identified exit to Mines 772 | -10/Exiles | Visited The Gauntlet 967 | -10/Exiles | Met EX-BIN 1000 | -10/Exiles | Aligned with FarCom system 1001 | -10/Exiles | Given EX-Vault access code 1239 | -10/Exiles | Entered Mines 1374 | -9/Mines | Learned location of 1 exit from Lower Caves 1618 | -9/Mines | Discovered new exit (range 8) 1624 | -9/Mines | Identified exit to Materials 1626 | -9/Mines | Entered Materials 1626 | -8/Materials | Evolved 4 slots: Propulsion x1, Utility x3 1627 | -8/Materials | Identified exit to Factory 1903 | -8/Materials | Identified exit to Garrison 1904 | -8/Materials | Entered Garrison 1932 | -8/Garrison | Triggered checkpoint 1971 | -8/Garrison | Destroyed 7 combat bots 2036 | -8/Garrison | Triggered checkpoint 2103 | -8/Garrison | Discovered exit to Factory (range 10) 2134 | -8/Garrison | Triggered checkpoint 2325 | -8/Garrison | Lost 5 parts (1p1n2u1w) 2566 | -8/Garrison | Triggered checkpoint 2744 | -8/Garrison | Installed Relay Interface Framework 2761 | -8/Garrison | Discovered exit to Factory (range 13) 2792 | -8/Garrison | Entered Factory 2792 | -7/Factory | Evolved 2 slots: Power x1, Weapon x1 2838 | -7/Factory | Discovered new exit (range 15) 2843 | -7/Factory | Build established: Scavenger-Skirmisher 2869 | -7/Factory | Identified exit to Lower Caves 4060 | -7/Factory | Entered Lower Caves 4061 | -7/Lower Caves | Identified exit to Lower Caves 4174 | -7/Lower Caves | Lost 3 parts (1n2w) 4374 | -7/Lower Caves | Build established: Scavenger-Gunner 4432 | -7/Lower Caves | Spotted B-75 Beast 4669 | -7/Lower Caves | Attracted the attention of an 0b10 checkpoint 5809 | -7/Lower Caves | Destroyed B-75 Beast 5824 | -7/Lower Caves | Lost 7 parts (1p2n1u3w) 6037 | -7/Lower Caves | Entered another Lower Caves area 6078 | -7/Lower Caves | Core integrity fell below 50% 6344 | -7/Lower Caves | Encountered a Warlord checkpoint 6660 | -7/Lower Caves | Learned 8 Factory zone layouts 6687 | -7/Lower Caves | Attracted the attention of an 0b10 outpost 6736 | -7/Lower Caves | System corruption reached 10% 6756 | -7/Lower Caves | Lost 3 allies 6776 | -7/Lower Caves | Lost 12 parts (2p2n3u5w) 6826 | -7/Lower Caves | Core integrity fell below 20% 7048 | -7/Lower Caves | Build established: Scavenger-Mutant 7085 | -7/Lower Caves | Learned Factory trap positions 7483 | -7/Lower Caves | Spotted B-75 Beast 7972 | -7/Lower Caves | Lost 3 parts (1n1u1w) 8141 | -7/Lower Caves | Discovered new exit (range 8) 8155 | -7/Lower Caves | Identified exit to Data Miner 8160 | -7/Lower Caves | Entered Data Miner 8160 | -7/Data Miner | Accompanied by 1 ally 8160 | -7/Data Miner | Discovered new exit (range 8) 8175 | -7/Data Miner | Identified exit to Proximity Caves 8208 | -7/Data Miner | Met Data Miner 8236 | -7/Data Miner | Build established: Mutant 8266 | -7/Data Miner | Learned location of Section 7 (-2) 8266 | -7/Data Miner | Acquired the access code to Warlord's prototype stash 8309 | -7/Data Miner | Received God Mode back door access code from Data Miner 8364 | -7/Data Miner | Entered Proximity Caves 8364 | -6/Proximity Caves | Accompanied by 1 ally 8463 | -6/Proximity Caves | Spotted B-75 Beast 8465 | -6/Proximity Caves | Escorted by Enhanced Grunt 8532 | -6/Proximity Caves | Destroyed by B-75 Beast with Magnetic Acceleration Cannon Last Messages --------------- 08475_ G-50 Soldier destroyed. 08477_ Chain reaction triggered in Rnf. Deuterium Engine. 08481_ System corrupted: Heat flow error (+292). 08481_ Enhanced Grunt system corrupted by crushing effect. 08483_ Power failure, Mic. Nuclear Core shutdown. 08483_ Enhanced Grunt suffers critical hit (Burn). 08484_ Enhanced Grunt destroyed. 08488_ Carbon-fiber Leg fries itself beyond repair. 08490_ B-48 Gladiator destroyed. 08494_ Lgt. Treads destroyed. 08494_ Discarded Imp. Deuterium Engine. 08496_ Lgt. Treads fries itself beyond repair. 08510_ System corrupted: Heat flow error (+153). 08517_ Lgt. Treads destroyed. 08521_ Critical hit (Burn: +37). 08522_ G-50 Soldier destroyed. 08528_ Flak Gun destroyed. 08528_ Hrd. Heavy Armor Plating destroyed. 08531_ Lgt. Angular Momentum Engine fries itself beyond repair. Map ----- +----------------------------------------------------+ | ?????????????????????????????????????????????????? | | ?????????????????????????????????????????????????? | | ?????????????????????????????????????????????????? | | ?????????????????????????????????????????????????? | | ?????????????????????????????????????????????????? | | ?????????????????????????????????????????????????? | | ?????????????????????????????####????????????????? | | ??????????????????????????## ????????????????? | | ????????????????????????? " ???????????????? | | ??????????????#?????????? ???????????????? | | ?????????????? ?????????? ????????????????? | | ??????????????? ????????# ?????????????????? | | ???????????????# ?????## % ???????????????????? | | ???????????????# ##### #????????????????????? | | ??????????# #??# # #????????????????????? | | ??????????# ?? = ?????????????????????? | | ???????????? ???% !%] ??????????????????????? | | ?????????????## ??; !;; ???????????????????????? | | ?????????????# ## ;;;"???????????????????????? | | ??????????????# %%;#???????????????????????? | | ??????????????# ;#???????????????????????? | | ??????????????## "##BB#???????????????????????? | | ???????????????## #?#BB##??????????????????????? | | ????????????????# ??# !;#??????????? #?????????? | | ????????????????## ??## %;##????????? ##????????? | | ?????????????????##??# @;#???????## ##???????? | | ?????????????????????# ##?????# ???????? | | ?????????????????????# % #???## ??????? | | ?????????????????????# #??# ??????? | | ?????????????????????# ### ??????? | | ?????????????????????# ?????? | | ?????????????????????###### ?????? | | ???????????????????#####??# ????? | | ??????????????????## #### ????? | | ??????????????????# ????? | | ?????????????????## ### ?????? | | ?????????????????# ### ## ##???????????? | | ???????????????### ### #?###????????????? | | ?????????????### # #????????????????? | | ????????????## ### ##???????????????? | | ????????????# #### #???????????????? | | ????????????## ## #???????????????? | | ?????????????## #?## ##???????????????? | | ??????????????###???######### ##????????????????? | | ????????????????????????????####?????????????????? | | ?????????????????????????????????????????????????? | | ?????????????????????????????????????????????????? | | ?????????????????????????????????????????????????? | | ?????????????????????????????????????????????????? | | ?????????????????????????????????????????????????? | +----------------------------------------------------+ Best States ------------- Heat Dissipation 48 Coolant Potential 50 Energy Generation 26 Energy Capacity 340 Matter Stores 300 Matter Capacity 400 Sight Range 20 Robot Scan Range 14 Terrain Scan Range 14 Terrain Scan Density 10 Jamming Range 12 Armor Coverage 600 Propulsion Shielding 66 Utility Shielding 66 Evasion (%) 50 Target Analysis 5 Recoil Reduction 3 Item Schematics ----------------- Combat Drone Bay | -7/Data Miner | Free Lgt. Regenerative Plating | -7/Data Miner | Free Cld. Aerolev Unit | -7/Data Miner | Free Exp. Targeting Computer | -7/Data Miner | Free Cld. Plasma Cannon | -7/Data Miner | Free Arm. Medium Treads | -7/Data Miner | Free Remote Force Field | -7/Data Miner | Free Imp. Remote Datajack | -7/Data Miner | Free Lgt. Antimatter Reactor | -7/Data Miner | Free Robot Schematics ------------------ A-15 Conveyor | -7/Data Miner | Free S-27 Virus | -7/Data Miner | Free M-22 Extractor | -7/Data Miner | Free Y-64 Sentinel | -7/Data Miner | Free L-41 Fighter | -7/Data Miner | Free B-60 Warrior | -7/Data Miner | Free P-60 Hacker | -7/Data Miner | Free Fabricated ------------ Nothing Alien Tech Used ----------------- None Achievements -------------- The Oracle Challenges ------------ None Game ------ Seed PlasmaFlakSource Manual? 0 Play Time 01:55:18 Cumulative 18.1 hours Start 2024.04.05 @ 15:43:12 End 2024.04.05 @ 17:55:42 Sessions 3 Manual Loads 0 Difficulty Rogue Special Mode None Game No. 12 Rogue 5 Adventurer 7 Explorer 0 Win Type - Total 0 Types 0/0/0/0/0/0/0/0/0 Lore% 20 Gallery% 21 Achievement% 20 Wizard Run 0 Options --------- Layout 0 ASCII 0 Keyboard 1 Movement Vi Keybinds 0 Fullscreen 2 Font 24/Smallcaps Map View 76x50 Zoom Use 0% Tactical HUD 1 Map Filters NONE Filters NONE Steam 1 RUN: 0010a6da-db14-4f0b-a2d3-1fcaa0bb6d46